bitfinex/quotes_ETHUSD_20240902
["timestamp","ask_amount","ask_price","bid_price","bid_amount"]
[1725256207558,0.424257,2466.2,2465.7,2.83884]
[1725256207876,0.67228809,2466.4,2465.8,2.8388]
[1725256208082,0.35103481,2466.3,2465.8,2.8388]
[1725256208241,0.35103481,2466.3,2466.0,2.83858]
[1725256208445,5.27902,2466.6,2466.0,2.83858]
[1725256208939,5.27902,2466.6,2465.9,5.13008]
[1725256209646,2.83804,2466.5,2465.9,5.13008]
[1725256210146,3.0,2466.4,2465.9,7.96872]
[1725256210342,5.31082,2466.9,2466.3,2.83825]
[1725256210645,3.657437,2466.9,2466.3,2.83825]
[1725256210913,2.83768,2466.8,2466.1,2.8384]
[1725256211593,5.83787,2466.7,2465.9,5.13005]
[1725256211797,2.83798,2466.6,2465.9,7.96868]
[1725256212027,3.0,2466.5,2465.9,5.13004]
[1725256212524,6.705625,2466.5,2465.9,5.13004]
[1725256212924,6.705625,2466.5,2465.8,2.8388]
[1725256213129,6.705625,2466.5,2465.9,2.83863]
[1725256214428,2.83832,2466.3,2465.7,2.83889]
[1725256214653,3.0,2466.2,2465.7,2.83889]
[1725256214987,3.0,2466.2,2465.6,2.3299]
[1725256215291,3.0,2466.2,2465.6,5.16888]
[1725256215989,3.0,2466.2,2465.5,2.83909]
[1725256216223,0.583832,2466.1,2465.5,2.83909]
[1725256216627,3.422322,2466.1,2465.5,2.83909]
[1725256216837,3.0,2466.0,2465.5,2.83909]
[1725256217017,5.83861,2466.0,2465.4,6.67008242]
[1725256217226,3.0,2466.0,2465.4,6.75119534]
[1725256217427,3.0,2466.0,2465.5,2.83918]
[1725256219297,5.83862,2466.0,2465.5,2.83918]
[1725256219796,3.0,2466.0,2465.5,2.83918]
[1725256222047,3.0,2466.0,2465.6,2.83906]
[1725256222710,3.0,2466.0,2465.5,5.67828]
[1725256223321,3.0,2466.0,2465.5,2.8391]
[1725256224954,5.83867,2466.0,2465.4,0.0811128]
[1725256225114,5.899949,2466.0,2465.2,5.16469]
[1725256225314,2.83879,2465.9,2465.2,5.16469]
[1725256225567,5.83885,2465.8,2465.2,5.16469]
[1725256227126,2.83895,2465.7,2465.2,2.3252]
[1725256227331,3.0,2465.6,2465.2,2.83951]
[1725256228830,3.0,2465.6,2465.1,2.83954]
[1725256230095,3.0,2465.6,2465.1,5.6791]
[1725256230366,3.0,2465.6,2465.1,2.83954]
[1725256231370,2.8396,2465.2,2464.5,2.4553]
[1725256231687,2.8396,2465.2,2464.5,5.29555]
[1725256231980,0.08305386,2465.1,2464.9,5.2314]
[1725256232279,5.83908,2465.6,2464.9,5.2314]
[1725256232440,5.83908,2465.6,2464.9,6.04200038]
[1725256232624,5.83908,2465.6,2465.0,2.83973]
[1725256233065,0.08203822,2465.5,2465.0,2.83973]
[1725256233527,0.08203822,2465.5,2464.9,3.20220038]
[1725256233528,2.92128822,2465.5,2464.9,6.04204038]
[1725256233724,3.0,2465.4,2465.0,2.83974]
[1725256233942,0.08203877,2465.4,2465.0,3.29463308]
[1725256234273,5.83908,2465.6,2465.0,3.29458308]
[1725256234437,0.08200212,2465.3,2465.0,3.29457308]
[1725256234832,0.08200212,2465.3,2465.0,6.13425308]
[1725256235059,5.83908,2465.6,2465.0,3.29457308]
[1725256235364,0.08196547,2465.2,2465.0,3.29457308]
[1725256235564,8.67823,2465.6,2465.0,3.29457308]
[1725256235779,0.08192882,2465.1,2465.0,3.29457308]
[1725256235956,5.83908,2465.6,2465.0,3.29457308]
[1725256236130,0.08192882,2465.1,2465.0,3.29457308]
[1725256236332,2.8389,2465.8,2465.1,2.4447]
[1725256236531,2.8389,2465.8,2465.2,2.92057222]
[1725256236851,2.83907,2465.6,2465.2,0.08112222]
[1725256237253,2.83907,2465.6,2465.1,2.4447]
[1725256237473,5.67822,2465.6,2465.1,2.4447]
[1725256237879,2.83918,2465.5,2465.1,2.4447]
[1725256238168,2.4742,2465.8,2464.8,10.27992]
[1725256238169,2.8394,2465.4,2464.8,10.27992]
[1725256238328,2.83942,2465.3,2464.9,2.2824]
[1725256238530,5.67878,2465.4,2464.9,2.2824]
[1725256238776,8.31306,2465.8,2464.9,2.2824]
[1725256238777,2.83953,2465.2,2464.9,2.2824]
[1725256239079,2.83995,2464.9,2464.5,7.44]
[1725256239290,2.83993,2464.9,2464.4,2.292]
[1725256239430,5.6799,2464.9,2464.4,2.292]
[1725256239870,2.3405,2465.3,2464.4,2.292]
[1725256240050,2.3405,2465.3,2464.0,10.28084]
[1725256240051,2.84041,2464.5,2464.1,2.2748]
[1725256241930,5.68082,2464.5,2464.1,2.2748]
[1725256242131,2.84041,2464.5,2464.1,2.2748]
[1725256242739,5.68083,2464.5,2464.1,2.2748]
[1725256242959,2.84041,2464.5,2464.1,2.2748]
[1725256243160,2.84041,2464.5,2464.1,2.35595527]
[1725256243368,5.68032,2464.7,2464.1,2.35595527]
[1725256243828,2.84022,2464.6,2464.1,2.35595527]
[1725256244028,2.84014,2464.7,2464.1,5.19674527]
[1725256244263,5.68031,2464.7,2464.1,5.19674527]
[1725256244445,2.84029,2464.6,2464.1,2.35595527]
[1725256244655,2.8404,2464.5,2464.1,2.2748]
[1725256244935,0.08082051,2464.4,2464.1,2.2748]
[1725256247046,5.6808,2464.5,2464.1,2.2748]
[1725256247250,2.8404,2464.5,2464.1,2.2748]
[1725256247684,0.08083526,2464.4,2463.9,8.10621377]
[1725256248723,0.08083526,2464.4,2463.9,2.3906]
[1725256248724,2.84057,2464.3,2463.9,2.3906]
[1725256248893,2.92128673,2464.3,2463.9,2.3906]
[1725256249644,2.92128673,2464.3,2463.7,9.782]
[1725256249785,2.8409,2464.1,2463.7,9.782]
[1725256249985,0.3728454,2464.3,2463.7,9.782]
[1725256249986,2.84059,2464.3,2463.7,12.62323]
[1725256250223,2.8402,2464.7,2464.0,2.84081]
[1725256250384,3.0,2464.8,2464.0,2.84081]
[1725256250385,0.08058066,2464.2,2464.1,5.26857543]
[1725256250595,5.84003,2464.8,2464.2,2.84066]
[1725256250815,2.84012,2464.7,2464.2,2.84066]
[1725256251003,3.0,2464.6,2464.2,2.84066]
[1725256251328,0.08042246,2464.5,2464.2,2.84066]
[1725256251484,0.08042246,2464.5,2464.2,3.29521392]
[1725256251682,0.08042246,2464.5,2464.2,0.45455392]
[1725256251880,0.08042246,2464.5,2464.1,2.3467]
[1725256253627,0.08042246,2464.5,2464.2,2.84067]
[1725256254182,3.0,2464.8,2464.2,2.84067]
[1725256254832,0.08048017,2464.7,2464.2,2.84067]
[1725256255728,2.8403,2464.6,2464.1,2.3467]
[1725256255924,0.08057078,2464.6,2464.1,2.42785126]
[1725256256145,3.08057078,2464.6,2464.1,2.95471839]
[1725256257024,3.08057078,2464.6,2464.1,5.79548839]
[1725256257586,3.08057078,2464.6,2464.2,2.84066]
[1725256257901,3.08057078,2464.6,2464.2,2.92181126]
[1725256257902,0.08057078,2464.6,2464.2,2.92181126]
[1725256258100,3.0,2464.8,2464.2,3.66043759]
[1725256258427,0.08055047,2464.5,2464.2,6.50097759]
[1725256258623,3.0,2464.8,2464.2,3.66037759]
[1725256258834,0.0805138,2464.4,2464.2,3.66037759]
[1725256258990,3.0,2464.8,2464.2,3.66037759]
[1725256259189,0.08047713,2464.3,2464.2,3.66037759]
[1725256259490,0.08047713,2464.3,2464.2,6.50096759]
[1725256259788,3.0,2464.8,2464.2,6.50096759]
[1725256259994,0.08047713,2464.3,2464.2,6.50096759]
[1725256260330,0.08047713,2464.3,2464.2,3.57921633]
[1725256260529,3.0,2464.8,2464.2,3.57921633]
[1725256260693,0.08053666,2464.3,2464.2,2.84059]
[1725256260891,2.84012,2464.7,2464.2,2.84059]
[1725256261118,0.08053666,2464.3,2464.2,2.84059]
[1725256261430,3.0,2464.6,2464.2,2.84059]
[1725256261631,0.08053666,2464.3,2464.2,6.20810431]
[1725256261936,3.0,2464.8,2464.5,2.84024]
[1725256262085,3.0,2465.0,2464.6,2.84017]
[1725256262288,3.0,2465.0,2464.7,2.8401]
[1725256262488,6.26449444,2465.2,2464.6,2.84017]
[1725256262726,3.42495444,2465.2,2464.6,2.84012]
[1725256263041,4.73704413,2465.2,2464.6,2.84012]
[1725256263202,4.54825251,2465.7,2465.0,2.83974]
[1725256263416,2.83902,2465.7,2465.1,2.4553]
[1725256263618,0.45482525,2465.6,2465.1,2.4553]
[1725256264027,3.29388525,2465.6,2465.1,2.4553]
[1725256264228,2.3077,2465.9,2465.2,2.92064657]
[1725256264229,2.83882,2465.9,2465.2,2.92064657]
[1725256264441,2.83882,2465.9,2465.3,2.443]
[1725256264600,2.83905,2465.7,2465.0,2.443]
[1725256264800,2.83921,2465.5,2465.0,2.443]
[1725256265328,0.283905,2465.6,2465.0,5.28275]
[1725256265791,3.283905,2465.6,2465.0,2.443]
[1725256265994,0.6122955,2465.5,2465.0,2.443]
[1725256266426,3.4514955,2465.5,2465.0,2.443]
[1725256266612,0.6122955,2465.5,2465.0,2.443]
[1725256267741,2.83931,2465.4,2464.8,5.2352]
[1725256267898,2.83931,2465.4,2464.8,2.3953]
[1725256268104,5.83952,2465.3,2464.8,2.3953]
[1725256268402,3.0,2465.3,2464.8,2.3953]
[1725256269200,3.0,2465.3,2464.9,0.08113544]
[1725256269542,3.0,2465.5,2465.1,2.83955]
[1725256269854,3.0,2465.7,2465.3,2.83932]
[1725256269997,3.0,2465.9,2465.3,0.08111702]
[1725256270199,6.53388825,2465.9,2465.3,0.08111702]
[1725256270399,6.53388825,2465.9,2465.2,5.23473]
[1725256270829,3.0,2465.9,2465.3,2.39641707]
[1725256271080,3.0,2466.1,2465.3,2.39641707]
[1725256271546,2.83872,2465.9,2465.3,2.39641707]
[1725256271700,3.0,2465.8,2465.3,5.23579707]
[1725256271903,3.0,2465.8,2465.3,2.39641707]
[1725256272440,3.0,2465.8,2465.3,5.23580707]
[1725256272634,3.0,2465.8,2465.3,2.3153]
[1725256272947,3.9545149,2465.8,2465.3,2.3153]
[1725256274140,3.9545149,2465.8,2465.3,5.23579548]
[1725256274503,2.83896,2465.7,2465.3,2.3153]
[1725256276626,2.83924,2465.5,2465.0,2.4686]
[1725256276832,2.8393,2465.4,2465.0,2.4686]
[1725256277135,3.0,2465.3,2465.0,2.4686]
[1725256277462,0.08255943,2465.2,2464.7,2.4686]
[1725256277965,0.08255943,2465.2,2464.7,5.30869]
[1725256279656,0.08255943,2465.2,2464.7,2.4686]
[1725256279955,0.08255943,2465.2,2464.4,5.09768]
[1725256279956,2.3093,2465.1,2464.4,5.09768]
[1725256280150,0.08242362,2465.0,2464.4,5.09768]
[1725256280352,0.08242362,2465.0,2464.4,8.01920588]
[1725256280672,0.08242362,2465.0,2464.5,2.84032]
[1725256280825,0.08242362,2465.0,2464.9,8.02364]
[1725256281247,7.03439251,2466.0,2465.3,2.3439]
[1725256281248,2.83883,2465.8,2465.3,2.3439]
[1725256281463,2.83883,2465.8,2465.4,0.23439]
[1725256281661,0.07533424,2465.7,2465.3,2.3439]
[1725256282367,0.07529762,2465.6,2465.4,2.83921]
[1725256282729,3.0,2466.0,2465.5,2.83918]
[1725256282927,0.6592809,2465.9,2465.4,2.92032417]
[1725256283141,0.0754309,2465.9,2465.5,2.83917]
[1725256283353,0.0754309,2465.9,2465.4,2.92032417]
[1725256283625,3.0,2466.1,2465.4,2.92032417]
[1725256283825,0.07531627,2465.8,2465.4,5.75954417]
[1725256284024,3.0,2465.9,2465.5,2.83915]
[1725256284225,0.07527965,2465.7,2465.5,2.83915]
[1725256284532,0.07519633,2465.6,2465.5,3.64948742]
[1725256284721,0.07519633,2465.6,2465.5,2.83915]
[1725256284921,3.0,2466.1,2465.5,2.83915]
[1725256285148,0.07534281,2466.0,2465.5,2.83915]
[1725256285351,0.66672009,2466.0,2465.4,5.75954417]
[1725256285626,0.66672009,2466.0,2465.5,2.83916]
[1725256286462,3.50534009,2466.0,2465.4,5.75954417]
[1725256286667,3.0,2465.9,2465.4,2.92032417]
[1725256286870,3.35053401,2465.9,2465.4,2.92032417]
[1725256287165,0.07533202,2465.8,2465.4,2.92032417]
[1725256287672,0.07533202,2465.8,2465.4,5.75954417]
[1725256287968,0.07533202,2465.8,2465.4,5.75955417]
[1725256288167,0.07533202,2465.8,2465.4,2.92032417]
[1725256288469,0.07533202,2465.8,2465.4,5.75954417]
[1725256288774,0.07533202,2465.8,2465.5,2.8391]
[1725256289070,0.07533202,2465.8,2465.4,2.92032417]
[1725256289233,0.07533202,2465.8,2465.4,5.75954417]
[1725256289433,3.0,2465.9,2465.4,5.75954417]
[1725256289648,0.07521734,2465.7,2465.5,2.83911]
[1725256289858,0.07525396,2465.8,2465.5,2.83911]
[1725256290179,3.58386,2465.9,2465.5,2.83911]
[1725256290334,0.07525396,2465.8,2465.5,2.83911]
[1725256290974,0.07525396,2465.8,2465.6,2.83906]
[1725256291190,0.07525396,2465.8,2465.6,2.839]
[1725256291482,5.83851,2466.1,2465.6,2.839]
[1725256291773,0.58384,2466.0,2465.4,5.75954417]
[1725256291971,0.07529058,2465.9,2465.4,5.75954417]
[1725256292137,0.07529058,2465.9,2465.4,2.92030417]
[1725256292329,0.72505464,2465.9,2465.4,2.92030417]
[1725256292639,3.72505464,2465.9,2465.4,2.92030183]
[1725256292950,6.56378464,2465.9,2465.4,2.92030183]
[1725256293483,3.72505464,2465.9,2465.4,2.92030183]
[1725256293787,3.72505464,2465.9,2465.5,2.83916]
[1725256294570,3.72505464,2465.9,2465.4,5.75952183]
[1725256294784,3.72505464,2465.9,2465.4,2.92030183]
[1725256295278,3.72505464,2465.9,2465.4,5.75952183]
[1725256295567,3.72505464,2465.9,2465.4,2.92030183]
[1725256295773,0.65636646,2465.8,2465.4,2.92030183]
[1725256295965,0.0758354,2465.7,2465.4,2.92030183]
[1725256296160,3.0,2465.9,2465.4,5.75953183]
[1725256296365,0.07587203,2465.8,2465.4,2.92030183]
[1725256296683,0.66732023,2465.8,2465.4,2.92030183]
[1725256300051,3.50619023,2465.8,2465.4,0.08111183]
[1725256301251,5.95129023,2465.8,2465.4,0.08111183]
[1725256301487,5.95129023,2465.8,2465.2,2.83945]
[1725256301643,0.89512902,2465.7,2465.2,2.83945]
[1725256301979,0.07609398,2465.6,2465.2,2.83945]
[1725256302343,0.07609398,2465.6,2465.3,0.08111388]
[1725256303039,0.07609398,2465.6,2465.3,2.92052388]
[1725256303546,2.83887,2465.8,2465.4,2.4357]
[1725256303744,0.07592217,2465.7,2465.4,2.4357]
[1725256303967,2.83887,2465.8,2465.4,2.4357]
[1725256304280,0.07592217,2465.7,2465.4,2.4357]
[1725256304658,3.0,2465.9,2465.4,2.4357]
[1725256304846,0.07593241,2465.6,2465.4,2.4357]
[1725256305050,7.12188325,2465.9,2465.4,2.4357]
[1725256305670,7.12188325,2465.9,2465.4,5.27492]
[1725256305671,0.07600567,2465.8,2465.4,5.27492]
[1725256305872,0.07600567,2465.8,2465.6,2.83898]
[1725256306258,0.07600567,2465.8,2465.7,2.83895]
[1725256306463,3.0,2466.2,2465.7,2.83895]
[1725256306664,0.0761248,2465.8,2465.6,2.92005655]
[1725256306874,3.0,2466.1,2465.6,5.75904655]
[1725256307076,0.07608817,2465.7,2465.6,2.92005655]
[1725256307387,0.07617408,2465.7,2465.6,2.92005655]
[1725256307586,9.0467962,2466.2,2465.6,2.83895]
[1725256307761,0.07632057,2466.1,2465.6,2.83895]
[1725256308158,1.20101569,2466.1,2465.6,2.83895]
[1725256308472,4.20101569,2466.1,2465.6,2.83895]
[1725256309889,5.9102482,2466.1,2465.6,2.83895]
[1725256310391,4.20101569,2466.1,2465.6,5.67794]
[1725256311876,5.9102482,2466.1,2465.6,5.67794]
[1725256312087,4.20101569,2466.1,2465.6,5.67794]
[1725256312308,4.20101569,2466.1,2465.8,2.83883]
[1725256314872,4.20101569,2466.1,2465.6,5.67793]
[1725256315113,5.9102482,2466.1,2465.6,2.83895]
[1725256316129,4.20101569,2466.1,2465.8,2.83882]
[1725256316308,3.07632057,2466.1,2465.8,2.83882]
[1725256316509,3.07632057,2466.1,2465.8,5.67764]
[1725256316798,3.07632057,2466.1,2465.8,2.83875]
[1725256317407,3.07632057,2466.1,2465.8,5.67752]
[1725256317616,3.07632057,2466.1,2465.8,2.83875]
[1725256318170,3.07632057,2466.1,2465.8,5.67751]
[1725256318370,3.07632057,2466.1,2465.8,2.83875]
[1725256318617,3.07632057,2466.1,2465.8,5.67752]
[1725256319575,3.07632057,2466.1,2465.9,2.83869]
[1725256319794,0.07632057,2466.1,2466.0,8.15180643]
[1725256320011,2.55599471,2466.6,2466.4,2.83814]
[1725256320012,2.12999559,2466.6,2466.4,2.83814]
[1725256320213,2.12951005,2466.8,2466.4,2.83814]
[1725256320214,0.07154105,2466.5,2466.4,2.83814]
[1725256320435,1.70923251,2466.8,2466.4,2.83814]
[1725256320592,0.07154105,2466.5,2466.4,2.83814]
[1725256320793,2.09360677,2466.7,2466.1,2.8384]
[1725256321107,1.78085699,2466.6,2466.1,2.8384]
[1725256321295,1.78085699,2466.6,2466.2,2.83836]
[1725256321495,0.8397735,2466.6,2466.1,2.8384]
[1725256321689,3.8397735,2466.6,2466.1,5.67681]
[1725256322040,5.54900601,2466.6,2466.1,2.8384]
[1725256322331,1.09007303,2466.5,2466.1,2.8384]
[1725256322542,4.09007303,2466.5,2466.1,2.8384]
[1725256322839,0.07131168,2466.4,2466.1,2.8384]
[1725256324537,2.90948168,2466.4,2465.9,10.27864]
[1725256324739,0.8944234,2466.4,2465.9,5.67728]
[1725256324913,2.60365591,2466.4,2465.9,2.83864]
[1725256325099,0.8944234,2466.4,2465.9,2.83864]
[1725256325304,0.95318389,2466.3,2465.9,2.83864]
[1725256325625,0.0715079,2466.2,2465.9,2.83864]
[1725256325827,0.0715079,2466.2,2465.9,5.67727]
[1725256326133,0.07147127,2466.1,2465.9,5.67728]
[1725256326294,0.07147127,2466.1,2466.0,2.8386]
[1725256326695,5.53234423,2466.4,2466.0,2.8386]
[1725256327150,0.07154452,2466.3,2466.0,2.8386]
[1725256328019,0.07154452,2466.3,2466.1,2.2711]
[1725256328225,0.07154452,2466.3,2466.1,5.10951]
[1725256328741,3.0,2466.5,2466.4,2.83814]
[1725256328923,0.07180918,2466.5,2466.4,2.83814]
[1725256329128,1.70923251,2466.8,2466.6,2.83788]
[1725256329330,0.07177126,2466.7,2466.6,2.83788]
[1725256329526,0.005,2466.9,2466.6,2.83788]
[1725256329764,0.06930795,2466.8,2466.6,2.83788]
[1725256331357,0.06930795,2466.8,2466.7,5.25469]
[1725256334369,0.06930795,2466.8,2466.7,6.063947]
[1725256334665,0.06930795,2466.8,2466.7,8.901737]
[1725256335543,0.06930795,2466.8,2466.7,8.09248]
[1725256337568,0.005,2466.9,2466.7,8.09248]
[1725256337569,0.005,2466.9,2466.8,5.67536]
[1725256338220,0.07551648,2466.9,2466.8,5.67536]
[1725256340360,0.07551648,2466.9,2466.8,2.83768]
[1725256342169,0.07551648,2466.9,2466.7,5.25468]
[1725256342493,0.07551648,2466.9,2466.7,2.4169]
[1725256343467,0.07551648,2466.9,2466.4,5.15408]
[1725256343676,3.07551648,2466.9,2466.4,5.15408]
[1725256343882,3.07551648,2466.9,2466.4,5.15405]
[1725256344033,0.07551648,2466.9,2466.4,5.15405]
[1725256345673,0.07551648,2466.9,2466.5,0.08108108]
[1725256345841,0.07551648,2466.9,2466.6,2.83784]
[1725256346264,0.07551648,2466.9,2466.7,2.3178]
[1725256346465,0.07551648,2466.9,2466.8,2.83768]
[1725256346793,0.07551648,2466.9,2466.8,5.75643189]
[1725256346995,0.07551648,2466.9,2466.8,6.56385508]
[1725256349212,0.07551648,2466.9,2466.8,8.88165508]
[1725256350226,0.005,2466.9,2466.8,12.3030926]
[1725256353860,0.005,2466.9,2466.8,12.22202071]
[1725256354024,3.120147,2467.7,2467.1,2.83729]
[1725256354025,0.120147,2467.7,2467.1,2.83729]
[1725256354360,0.120147,2467.7,2467.6,12.15665389]
[1725256354646,0.120147,2467.7,2467.6,12.70665389]
[1725256356062,0.120147,2467.7,2467.6,14.37823338]
[1725256356257,0.120147,2467.7,2467.6,12.34889657]
[1725256356643,0.120147,2467.7,2467.6,11.79889657]
[1725256359674,0.120147,2467.7,2467.6,12.34889657]
[1725256360883,0.120147,2467.7,2467.4,5.23045]
[1725256361026,0.120147,2467.7,2467.2,2.83714]
[1725256361228,0.0602665,2467.6,2467.4,2.83699]
[1725256361633,0.0602665,2467.6,2467.5,5.21111641]
[1725256361849,0.120147,2467.7,2467.6,2.83676]
[1725256362074,0.120147,2467.7,2467.6,5.67352]
[1725256362235,0.18036824,2467.7,2467.6,5.67352]
[1725256362430,0.120147,2467.7,2467.6,6.08484612]
[1725256362633,0.120147,2467.7,2467.6,6.16587962]
[1725256363136,0.120147,2467.7,2467.6,6.08484612]
[1725256363333,0.120147,2467.7,2467.6,6.63484612]
[1725256364440,0.120147,2467.7,2467.6,8.88994612]
[1725256368879,0.120147,2467.7,2467.6,13.17194612]
[1725256369062,0.120147,2467.7,2467.6,8.88994612]
[1725256369672,0.120147,2467.7,2467.6,6.63484612]
[1725256370363,0.120147,2467.7,2467.6,9.55263104]
[1725256370700,0.00243113,2468.0,2467.9,16.64769338]
[1725256370897,0.45482212,2468.2,2468.1,10.94304]
[1725256371186,0.08527915,2468.2,2468.1,13.94304]
[1725256371373,2.83484,2469.3,2468.6,2.83551]
[1725256371692,0.05515024,2469.2,2468.8,2.83529]
[1725256371876,0.05515024,2469.2,2468.8,2.91628993]
[1725256372059,0.00273673,2469.5,2469.0,2.83513]
[1725256372255,0.05516623,2469.1,2469.0,2.91612598]
[1725256372488,0.00273673,2469.5,2469.0,0.63099598]
[1725256372695,0.00273673,2469.5,2469.4,5.70224338]
[1725256373014,0.00273673,2469.5,2469.4,14.20262338]
[1725256373156,6.73e-06,2469.5,2469.4,11.36793338]
[1725256373352,6.73e-06,2469.5,2469.4,14.20262338]
[1725256373601,6.73e-06,2469.5,2469.4,20.03731338]
[1725256373834,0.90007324,2470.2,2470.0,10.81655338]
[1725256373955,0.90007324,2470.2,2470.0,14.20055338]
[1725256374563,0.90007324,2470.2,2470.0,11.36655338]
[1725256375656,0.90007324,2470.2,2470.0,3.384]
[1725256376292,0.90007324,2470.2,2469.9,2.83412]
[1725256376512,0.90007324,2470.2,2470.0,2.834]
[1725256376860,0.90007324,2470.2,2469.9,5.70166338]
[1725256377357,0.90007324,2470.2,2470.0,0.08095756]
[1725256377560,0.90007324,2470.2,2469.9,2.83411]
[1725256377758,0.90007324,2470.2,2470.0,3.384]
[1725256378902,0.90007324,2470.2,2470.0,9.71546021]
[1725256379117,0.90007324,2470.2,2469.8,2.83422]
[1725256379410,0.90007324,2470.2,2469.7,2.86755338]
[1725256379716,0.90007324,2470.2,2470.0,2.834]
[1725256379856,0.90007324,2470.2,2470.0,2.91496146]
[1725256380373,0.90007324,2470.2,2470.0,3.48986961]
[1725256380572,0.90007324,2470.2,2470.0,8.71806961]
[1725256380769,0.90007324,2470.2,2470.0,12.13562299]
[1725256380978,0.90007324,2470.2,2470.0,14.96962299]
[1725256381224,10.25139,2472.3,2470.0,14.96962299]
[1725256381225,2.83179,2472.0,2471.0,2.3942]
[1725256381367,2.83179,2472.0,2471.2,2.83262]
[1725256381561,2.83217,2471.6,2470.8,2.83301]
[1725256381756,2.83217,2471.6,2470.6,2.4376]
[1725256381757,2.83204,2471.8,2471.1,2.83266]
[1725256382026,5.66358,2472.0,2471.2,2.9135216]
[1725256382167,0.802618,2471.9,2471.4,2.83236]
[1725256382361,0.85215928,2471.9,2471.4,2.83236]
[1725256382564,0.04954128,2471.9,2471.6,2.83208]
[1725256382790,2.83178,2472.0,2471.4,2.83229]
[1725256382990,2.83162,2472.1,2471.5,0.08091602]
[1725256383262,0.05051294,2472.0,2471.6,2.83209]
[1725256383593,0.05051294,2472.0,2471.4,2.83237]
[1725256383594,2.83171,2472.0,2471.4,2.83237]
[1725256383793,0.05046094,2471.9,2471.5,2.83228]
[1725256384011,0.05046094,2471.9,2471.4,2.83232]
[1725256384167,0.05046094,2471.9,2471.6,2.83213]
[1725256384563,0.05046094,2471.9,2471.6,2.83209]
[1725256384872,0.05046094,2471.9,2471.8,2.83194]
[1725256385206,0.05046094,2471.9,2471.8,2.91284077]
[1725256385418,2.951377,2472.5,2472.0,2.8317]
[1725256385419,0.120147,2472.5,2472.0,2.8317]
[1725256385716,0.120147,2472.5,2471.8,2.91284077]
[1725256385717,3.81676597,2472.5,2471.8,3.38186]
[1725256385882,2.951317,2472.5,2471.8,2.83186]
[1725256386281,2.951317,2472.5,2471.5,5.14225338]
[1725256386282,2.83167,2472.1,2471.5,2.2747]
[1725256386473,2.83167,2472.1,2471.5,2.83227]
[1725256386668,2.83167,2472.1,2471.3,5.70003338]
[1725256386868,2.83167,2472.1,2471.5,2.86755338]
[1725256387064,3.114907,2472.0,2471.3,5.70003338]
[1725256387306,3.114907,2472.0,2471.4,0.55]
[1725256387509,2.83195,2471.8,2471.3,5.69999338]
[1725256387739,0.283167,2472.0,2471.5,2.83227]
[1725256387931,2.83167,2472.1,2471.3,5.69998338]
[1725256388101,2.83183,2471.9,2471.3,2.86755338]
[1725256388289,2.83217,2471.7,2471.1,2.83273]
[1725256388485,2.83225,2471.6,2470.9,5.25469]
[1725256388686,0.283225,2471.5,2471.1,2.83266]
[1725256388891,5.32438,2471.8,2471.2,2.83263]
[1725256389135,5.83175,2472.0,2471.5,2.83226]
[1725256389136,3.0,2472.0,2471.5,2.83226]
[1725256389311,2.4924,2472.1,2471.5,2.83226]
[1725256389312,5.324,2472.1,2471.5,2.83226]
[1725256389508,0.532388,2472.0,2471.6,0.08091113]
[1725256389713,0.532388,2472.0,2471.5,2.83226]
[1725256389901,5.95037697,2472.4,2471.6,0.08091115]
[1725256390108,5.32367,2472.4,2471.6,0.08091115]
[1725256390307,2.3449,2472.7,2471.6,0.08091115]
[1725256390512,2.83069,2472.9,2472.2,2.83138]
[1725256390804,2.83061,2473.0,2472.2,2.9122696]
[1725256390805,0.05111225,2472.4,2472.2,2.9122696]
[1725256391016,0.05111225,2472.4,2472.3,2.91225964]
[1725256391221,0.05111225,2472.4,2472.3,3.64791396]
[1725256391431,2.3449,2473.6,2472.4,5.6625]
[1725256391592,2.82955,2473.9,2472.4,9.12461465]
[1725256391794,2.82895,2474.5,2472.4,9.12461465]
[1725256391795,2.82931,2474.1,2473.0,5.27747]
[1725256391994,2.82977,2473.7,2472.7,10.2709]
[1725256392190,2.82977,2473.7,2472.5,2.4469]
[1725256392191,0.50930193,2473.7,2472.9,2.4469]
[1725256392440,5.26875,2474.0,2473.0,2.91138962]
[1725256392658,0.57798256,2473.9,2473.2,2.83033]
[1725256392822,0.57798256,2473.9,2473.3,0.08085256]
[1725256393026,3.40752256,2473.9,2473.1,2.83041]
[1725256393334,3.40752256,2473.9,2472.9,9.08619309]
[1725256393335,0.58467326,2473.8,2472.9,9.08620309]
[1725256393658,0.05179916,2473.7,2472.5,5.28365]
[1725256393821,2.82988,2473.6,2472.7,2.83087]
[1725256394008,2.88201786,2473.5,2472.7,2.83087]
[1725256394358,2.88201786,2473.5,2472.1,5.16876]
[1725256394359,2.83047,2473.1,2472.1,5.16876]
[1725256394562,2.83047,2473.1,2472.2,0.08088373]
[1725256394563,2.83068,2472.9,2472.2,0.08088373]
[1725256394712,0.05187691,2473.0,2472.2,2.91236373]
[1725256395059,0.05184048,2472.9,2472.3,0.0808798]
[1725256395474,2.83092,2472.7,2471.9,2.83172]
[1725256395629,0.283092,2472.6,2471.9,2.83172]
[1725256395815,0.05155547,2472.5,2471.9,2.83172]
[1725256396011,0.05155547,2472.5,2472.1,2.83154]
[1725256396217,0.05155547,2472.5,2472.3,2.83135]
[1725256396516,2.83067,2473.0,2471.9,2.83182]
[1725256396718,0.05114005,2472.4,2472.2,2.83148]
[1725256396949,0.283067,2472.9,2472.3,2.91223232]
[1725256397148,2.83035,2473.2,2472.3,2.83135]
[1725256397350,0.05145664,2472.8,2472.3,2.83135]
[1725256397518,5.16192,2473.3,2472.0,11.24862309]
[1725256397519,2.3317,2473.3,2472.0,7.44]
[1725256397853,2.83087,2472.8,2472.0,10.27169]
[1725256398218,2.83062,2473.0,2472.2,2.83147]
[1725256398419,2.83046,2473.1,2472.4,2.83125]
[1725256398685,2.83046,2473.1,2472.5,0.08088154]
[1725256399163,3.67534918,2473.2,2472.5,0.08088154]
[1725256399367,0.60070492,2473.1,2472.6,2.83094]
[1725256399661,3.11834179,2473.4,2472.5,2.91200154]